fUSD/lending_fUSD_20250623
["ID","MTS","AMOUNT","RATE_DAILY","PERIOD"]
[367256555,1750720250903,-930.74,0.00021917,2]
[367256556,1750720250912,-490.0,0.00021917,2]
[367256557,1750720250922,-605.1,0.00021917,2]
[367256558,1750720250935,-151.0,0.00021917,2]
[367256559,1750720250946,-863.73,0.00021917,2]
[367256560,1750720250955,-4136.86,0.00021917,2]
[367256561,1750720250964,-490.0,0.00021917,2]
[367256562,1750720250974,-500.0,0.00021917,2]
[367256563,1750720250985,-538.91,0.00021917,2]
[367256564,1750720250994,-657.58,0.00021917,2]
[367256565,1750720251004,-2102.05,0.00021917,2]
[367256566,1750720251015,-490.0,0.00021917,2]
[367256567,1750720251024,-914.31,0.00021917,2]
[367256568,1750720251033,-870.44,0.00021917,2]
[367256569,1750720251043,-490.0,0.00021917,2]
[367256570,1750720251052,-2161.05,0.00021917,2]
[367256571,1750720251061,-598.29,0.00021917,2]
[367256572,1750720251071,-1160.51,0.00021917,2]
[367256573,1750720251080,-1075.55,0.00021917,2]
[367256574,1750720251089,-5318.79,0.00021917,2]
[367256575,1750720251098,-490.0,0.00021917,2]
[367256576,1750720251108,-4925.64,0.00021917,2]
[367256577,1750720251117,-690.98,0.00021917,2]
[367256578,1750720251126,-526.263632,0.00021917,2]
[367256579,1750720251136,-2160.42,0.00021917,2]
[367256580,1750720251145,-582.65,0.00021917,2]
[367256581,1750720251154,-490.0,0.00021917,2]
[367256582,1750720251163,-490.0,0.00021917,2]
[367256583,1750720251172,-596.44,0.00021917,2]
[367256584,1750720251181,-151.0,0.00021917,2]
[367256585,1750720251191,-490.0,0.00021917,2]
[367256586,1750720251199,-490.0,0.00021917,2]
[367256587,1750720251209,-2330.86,0.00021917,2]
[367256588,1750720251218,-490.0,0.00021917,2]
[367256589,1750720251227,-490.0,0.00021917,2]
[367256590,1750720251236,-490.0,0.00021917,2]
[367256591,1750720251245,-1061.28,0.00021917,2]
[367256592,1750720251254,-3640.93,0.00021917,2]
[367256593,1750720251263,-713.85,0.00021917,2]
[367256594,1750720251272,-490.0,0.00021917,2]
[367256595,1750720251281,-490.0,0.00021917,2]
[367256596,1750720251290,-546.51,0.00021917,2]
[367256597,1750720251299,-490.0,0.00021917,2]
[367256598,1750720251308,-1131.4,0.00021917,2]
[367256599,1750720251318,-913.07,0.00021917,2]
[367256600,1750720251327,-622.0,0.00021917,2]
[367256601,1750720251336,-490.0,0.00021917,2]
[367256602,1750720251345,-888.12,0.00021917,2]
[367256603,1750720251354,-964.98,0.00021917,2]
[367256604,1750720251363,-503.26,0.00021917,2]
[367256605,1750720251373,-490.0,0.00021917,2]
[367256606,1750720251382,-654.36,0.00021917,2]
[367256607,1750720251391,-490.0,0.00021917,2]
[367256608,1750720251400,-917.79,0.00021917,2]
[367256609,1750720251411,-2848.4,0.00021917,2]
[367256610,1750720251421,-490.0,0.00021917,2]
[367256611,1750720251430,-804.65,0.00021917,2]
[367256612,1750720251439,-595.99,0.00021917,2]
[367256613,1750720251448,-490.0,0.00021917,2]
[367256614,1750720251458,-1492.92,0.00021917,2]
[367256615,1750720251467,-490.0,0.00021917,2]
[367256616,1750720251476,-1166.2,0.00021917,2]
[367256617,1750720251485,-1703.71,0.00021917,2]
[367256618,1750720251494,-490.0,0.00021917,2]
[367256619,1750720251503,-178.19682788,0.00021917,2]
[367256620,1750720251513,-500.0,0.00021917,2]
[367256621,1750720251522,-827.46,0.00021917,2]
[367256622,1750720251532,-500.0,0.00021917,2]
[367256623,1750720251541,-500.0,0.00021917,2]
[367256624,1750720251550,-500.0,0.00021917,2]
[367256625,1750720251560,-500.0,0.00021917,2]
[367256626,1750720251569,-490.0,0.00021917,2]
[367256627,1750720251579,-1312.94,0.00021917,2]
[367256628,1750720251588,-1989.89,0.00021917,2]
[367256629,1750720251597,-156.96515604,0.00021917,2]
[367256630,1750720251607,-490.0,0.00021917,2]
[367256631,1750720251616,-490.0,0.00021917,2]
[367256632,1750720251626,-870.99,0.00021917,2]
[367256633,1750720251635,-965.17,0.00021917,2]
[367256634,1750720251644,-1651.42,0.00021917,2]
[367256635,1750720251654,-637.24,0.00021917,2]
[367256636,1750720251663,-514.04260122,0.00021917,2]
[367256637,1750720251672,-635.65,0.00021917,2]
[367256638,1750720251683,-490.0,0.00021917,2]
[367256639,1750720251692,-490.0,0.00021917,2]
[367256640,1750720251702,-785.95,0.00021917,2]
[367256641,1750720251711,-674.96,0.00021917,2]
[367256642,1750720251722,-1518.67,0.00021917,2]
[367256643,1750720251735,-490.0,0.00021917,2]
[367256644,1750720251745,-625.98,0.00021917,2]
[367256645,1750720251754,-490.0,0.00021917,2]
[367256646,1750720251764,-490.0,0.00021917,2]
[367256647,1750720251774,-3091.78,0.00021917,2]
[367256648,1750720251783,-151.0,0.00021917,2]
[367256649,1750720251793,-490.0,0.00021917,2]
[367256650,1750720251803,-500.0,0.00021917,2]
[367256651,1750720251812,-1403.62,0.00021917,2]
[367256652,1750720251822,-588.85,0.00021917,2]
[367256653,1750720251831,-490.0,0.00021917,2]
[367256654,1750720251841,-1521.33,0.00021917,2]
[367256655,1750720251850,-792.11,0.00021917,2]
[367256656,1750720251860,-736.24,0.00021917,2]
[367256657,1750720251870,-656.6,0.00021917,2]
[367256658,1750720251881,-608.22,0.00021917,2]
[367256659,1750720251891,-490.0,0.00021917,2]
[367256660,1750720251901,-490.0,0.00021917,2]
[367256661,1750720251910,-490.0,0.00021917,2]
[367256662,1750720251920,-490.0,0.00021917,2]
[367256663,1750720251933,-2536.56,0.00021917,2]
[367256664,1750720251945,-552.96,0.00021917,2]
[367256665,1750720251955,-490.0,0.00021917,2]
[367256666,1750720251964,-508.00948786,0.00021917,2]
[367256667,1750720251974,-490.0,0.00021917,2]
[367256668,1750720251983,-490.0,0.00021917,2]
[367256669,1750720251992,-490.0,0.00021917,2]
[367256670,1750720252001,-954.36,0.00021917,2]
[367256671,1750720252011,-3653.75,0.00021917,2]
[367256672,1750720252020,-490.0,0.00021917,2]
[367256673,1750720252030,-1770.55,0.00021917,2]
[367256674,1750720252039,-490.0,0.00021917,2]
[367256675,1750720252048,-1766.86,0.00021917,2]
[367256676,1750720252058,-500.0,0.00021917,2]
[367256677,1750720252068,-6832.89,0.00021917,2]
[367256678,1750720252077,-490.0,0.00021917,2]
[367256679,1750720252087,-490.0,0.00021917,2]
[367256680,1750720252096,-1012.51,0.00021917,2]
[367256681,1750720252106,-490.0,0.00021917,2]
[367256682,1750720252115,-1301.41,0.00021917,2]
[367256683,1750720252124,-490.0,0.00021917,2]
[367256684,1750720252134,-700.46,0.00021917,2]
[367256685,1750720252144,-490.0,0.00021917,2]
[367256686,1750720252153,-490.0,0.00021917,2]
[367256687,1750720252163,-490.0,0.00021917,2]
[367256688,1750720252172,-575.02,0.00021917,2]
[367256689,1750720252182,-99267.01,0.00021917,2]
[367256690,1750720252191,-490.0,0.00021917,2]
[367256691,1750720252200,-490.0,0.00021917,2]
[367256692,1750720252210,-3999.93,0.00021917,2]
[367256693,1750720252219,-1251.72,0.00021917,2]
[367256694,1750720252228,-500.0,0.00021917,2]
[367256695,1750720252237,-500.0,0.00021917,2]
[367256696,1750720252246,-500.0,0.00021917,2]
[367256697,1750720252255,-490.0,0.00021917,2]
[367256698,1750720252264,-500.0,0.00021917,2]
[367256699,1750720252274,-500.0,0.00021917,2]
[367256700,1750720252283,-690.99,0.00021917,2]
[367256701,1750720252292,-490.0,0.00021917,2]
[367256702,1750720252302,-1289.5,0.00021917,2]
[367256703,1750720252311,-156.52798288,0.00021917,2]
[367256704,1750720252320,-674.55,0.00021917,2]
[367256705,1750720252329,-892.01,0.00021917,2]
[367256706,1750720252338,-586.68,0.00021917,2]
[367256707,1750720252347,-897.51,0.00021917,2]
[367256708,1750720252356,-1186.95,0.00021917,2]
[367256709,1750720252365,-628.08,0.00021917,2]
[367256710,1750720252375,-491.89,0.00021917,2]
[367256711,1750720252385,-1120.03,0.00021917,2]
[367256712,1750720252394,-275.34460733,0.00021917,2]
[367256713,1750720252403,-490.0,0.00021917,2]
[367256714,1750720252412,-151.0,0.00021917,2]
[367256715,1750720252422,-1083.77,0.00021917,2]
[367256716,1750720252431,-490.0,0.00021917,2]
[367256717,1750720252441,-490.0,0.00021917,2]
[367256718,1750720252451,-641.31,0.00021917,2]
[367256719,1750720252461,-490.0,0.00021917,2]
[367256720,1750720252471,-1068.09,0.00021917,2]
[367256721,1750720252481,-1194.36,0.00021917,2]
[367256722,1750720252492,-490.0,0.00021917,2]
[367256723,1750720252503,-575.13,0.00021917,2]
[367256724,1750720252511,-767.69,0.00021917,2]
[367256725,1750720252521,-2490.5,0.00021917,2]
[367256726,1750720252531,-1497.6,0.00021917,2]
[367256727,1750720252543,-566.87,0.00021917,2]
[367256728,1750720252554,-151.0,0.00021917,2]
[367256729,1750720252564,-533.37,0.00021917,2]
[367256730,1750720252574,-830.3,0.00021917,2]
[367256731,1750720252585,-490.0,0.00021917,2]
[367256732,1750720252594,-1805.1,0.00021917,2]
[367256733,1750720252605,-776.33,0.00021917,2]
[367256734,1750720252615,-490.0,0.00021917,2]
[367256735,1750720252625,-811.01,0.00021917,2]
[367256736,1750720252636,-12231.5,0.00021917,2]
[367256737,1750720252645,-895.61,0.00021917,2]
[367256738,1750720252657,-1834.68,0.00021917,2]
[367256739,1750720252666,-604.76,0.00021917,2]
[367256740,1750720252677,-942.76,0.00021917,2]
[367256741,1750720252687,-9723.96,0.00021917,2]
[367256742,1750720252697,-151.0,0.00021917,2]
[367256743,1750720252709,-490.0,0.00021917,2]
[367256744,1750720252718,-3237.93,0.00021917,2]
[367256745,1750720252728,-490.0,0.00021917,2]
[367256746,1750720252737,-783.99,0.00021917,2]
[367256747,1750720252746,-4513.59,0.00021917,2]
[367256748,1750720252755,-490.0,0.00021917,2]
[367256749,1750720252764,-494.29966908,0.00021917,2]
[367256750,1750720252775,-490.0,0.00021917,2]
[367256751,1750720252787,-490.0,0.00021917,2]
[367256752,1750720252901,-557.68,0.00021917,2]
[367256753,1750720252922,-1103.03,0.00021917,2]
[367256754,1750720252934,-490.0,0.00021917,2]
[367256755,1750720252944,-535.9,0.00021917,2]
[367256756,1750720252956,-490.0,0.00021917,2]
[367256757,1750720252965,-151.0,0.00021917,2]
[367256758,1750720252976,-1066.43,0.00021917,2]
[367256759,1750720252986,-596.54,0.00021917,2]
[367256760,1750720252995,-490.0,0.00021917,2]
[367256761,1750720253006,-907.6,0.00021917,2]
[367256762,1750720253016,-947.45,0.00021917,2]
[367256763,1750720253027,-221.25044,0.00021917,2]
[367256764,1750720253036,-151.0,0.00021917,2]
[367256765,1750720253046,-311.46829623,0.00021917,2]
[367256766,1750720253055,-490.0,0.00021917,2]
[367256767,1750720253065,-1324.93,0.00021917,2]
[367256768,1750720253074,-1319.89,0.00021917,2]
[367256769,1750720253084,-490.0,0.00021917,2]
[367256770,1750720253093,-221.25044,0.00021917,2]
[367256771,1750720253103,-4371.79,0.00021917,2]
[367256772,1750720253112,-1113.07,0.00021917,2]
[367256773,1750720253122,-490.0,0.00021917,2]
[367256774,1750720253132,-490.0,0.00021917,2]
[367256775,1750720253142,-744.09,0.00021917,2]
[367256776,1750720253152,-630.35,0.00021917,2]
[367256777,1750720253162,-490.0,0.00021917,2]
[367256778,1750720253172,-525.09734163,0.00021917,2]
[367256779,1750720253181,-883.29,0.00021917,2]
[367256780,1750720253191,-898.49,0.00021917,2]
[367256781,1750720253200,-490.0,0.00021917,2]
[367256782,1750720253210,-365.93814469,0.00021917,2]
[367256783,1750720253220,-1761.89,0.00021917,2]
[367256784,1750720253230,-994.28,0.00021917,2]
[367256785,1750720253240,-3421.79,0.00021917,2]
[367256786,1750720253249,-2038.68,0.00021917,2]
[367256787,1750720253258,-943.38,0.00021917,2]
[367256788,1750720253268,-151.0,0.00021917,2]
[367256789,1750720253278,-490.0,0.00021917,2]
[367256790,1750720253287,-490.0,0.00021917,2]
[367256791,1750720253297,-490.0,0.00021917,2]
[367256792,1750720253306,-1646.59,0.00021917,2]
[367256793,1750720253316,-490.0,0.00021917,2]
[367256794,1750720253325,-2547.54,0.00021917,2]
[367256795,1750720253335,-490.0,0.00021917,2]
[367256796,1750720253344,-646.88,0.00021917,2]
[367256797,1750720253354,-977.81,0.00021917,2]
[367256798,1750720253363,-705.0,0.00021917,2]
[367256799,1750720253373,-784.56,0.00021917,2]
[367256800,1750720253382,-490.0,0.00021917,2]
[367256801,1750720253391,-151.0,0.00021917,2]
[367256802,1750720253401,-571.39,0.00021917,2]
[367256803,1750720253411,-1044.99,0.00021917,2]
[367256804,1750720253421,-707.98,0.00021917,2]
[367256805,1750720253430,-490.0,0.00021917,2]
[367256806,1750720253440,-490.0,0.00021917,2]
[367256807,1750720253450,-758.21,0.00021917,2]
[367256808,1750720253459,-24749.35,0.00021917,2]
[367256809,1750720253469,-490.0,0.00021917,2]
[367256810,1750720253479,-2686.176655,0.00021917,2]
[367256811,1750720253488,-490.0,0.00021917,2]
[367256812,1750720253497,-644.07,0.00021917,2]
[367256813,1750720253507,-961.66,0.00021917,2]
[367256814,1750720253517,-548.09,0.00021917,2]
[367256815,1750720253526,-490.0,0.00021917,2]
[367256816,1750720253536,-1807.84,0.00021917,2]
[367256817,1750720253546,-1049.93,0.00021917,2]
[367256818,1750720253555,-490.0,0.00021917,2]
[367256819,1750720253564,-1031.44,0.00021917,2]
[367256820,1750720253574,-490.0,0.00021917,2]
[367256821,1750720253583,-151.219152,0.00021917,2]
[367256822,1750720253593,-719.14,0.00021917,2]
[367256823,1750720253602,-500.0,0.00021917,2]
[367256824,1750720253612,-490.0,0.00021917,2]
[367256825,1750720253621,-500.0,0.00021917,2]
[367256826,1750720253630,-500.0,0.00021917,2]
[367256827,1750720253640,-500.0,0.00021917,2]
[367256828,1750720253650,-490.0,0.00021917,2]
[367256829,1750720253659,-500.0,0.00021917,2]
[367256830,1750720253668,-505.77,0.00021917,2]
[367256831,1750720253677,-905.31,0.00021917,2]
[367256832,1750720253687,-735.92,0.00021917,2]
[367256833,1750720253696,-629.84,0.00021917,2]
[367256834,1750720253705,-652.97,0.00021917,2]
[367256835,1750720253714,-781.37,0.00021917,2]
[367256836,1750720253724,-884.52,0.00021917,2]
[367256837,1750720253733,-1808.03,0.00021917,2]
[367256838,1750720253742,-490.0,0.00021917,2]
[367256839,1750720253752,-490.0,0.00021917,2]
[367256840,1750720253762,-490.0,0.00021917,2]
[367256841,1750720253771,-500.0,0.00021918,2]
[367256842,1750720253780,-500.0,0.00021918,2]
[367256843,1750720253790,-500.0,0.00021918,2]
[367256844,1750720253799,-500.0,0.00021918,2]
[367256845,1750720253809,-500.0,0.00021918,2]
[367256846,1750720253819,-500.0,0.00021918,2]
[367256847,1750720253829,-500.0,0.00021918,2]
[367256848,1750720253839,-500.0,0.00021918,2]
[367256849,1750720253848,-500.0,0.00021918,2]
[367256850,1750720253858,-500.0,0.00021918,2]
[367256851,1750720253867,-500.0,0.00021918,2]
[367256852,1750720253877,-500.0,0.00021918,2]
[367256853,1750720253887,-500.0,0.00021918,2]
[367256854,1750720253896,-500.0,0.00021918,2]
[367256855,1750720253906,-500.0,0.00021918,2]
[367256856,1750720253916,-500.0,0.00021918,2]
[367256857,1750720253926,-500.0,0.00021918,2]
[367256858,1750720253939,-500.0,0.00021918,2]
[367256859,1750720253950,-500.0,0.00021918,2]
[367256860,1750720253959,-500.0,0.00021918,2]
[367256861,1750720253969,-500.0,0.00021918,2]
[367256862,1750720253978,-500.0,0.00021918,2]
[367256863,1750720253988,-500.0,0.00021918,2]
[367256864,1750720253998,-500.0,0.00021918,2]
[367256865,1750720254009,-500.0,0.00021918,2]
[367256866,1750720254019,-500.0,0.00021918,2]
[367256867,1750720254028,-500.0,0.00021918,2]
[367256868,1750720254038,-500.0,0.00021918,2]
[367256869,1750720254047,-500.0,0.00021918,2]
[367256870,1750720254058,-207.34075137,0.00021918,2]
[367256871,1750720254068,-500.0,0.00021918,2]
[367256872,1750720254077,-500.0,0.00021918,2]
[367256873,1750720254087,-500.0,0.00021918,2]
[367256874,1750720254097,-500.0,0.00021918,2]
[367256875,1750720254107,-500.0,0.00021918,2]
[367256876,1750720254117,-500.0,0.00021918,2]
[367256877,1750720254126,-500.0,0.00021918,2]
[367256878,1750720254140,-500.0,0.00021918,2]
[367256879,1750720254150,-500.0,0.00021918,2]
[367256880,1750720254160,-500.0,0.00021918,2]
[367256881,1750720254170,-500.0,0.00021918,2]
[367256882,1750720254180,-500.0,0.00021918,2]
[367256883,1750720254190,-150.0,0.00021928,2]
[367256884,1750720254200,-150.0,0.00021947,2]
[367256885,1750720254210,-8496.41488607,0.0002196,2]
[367256886,1750720254219,-635.0,0.00021965,2]
[367256887,1750720254229,-500.0,0.00021973,2]
[367256888,1750720254239,-500.0,0.00021973,2]
[367256889,1750720254250,-166.6045441,0.00021973,2]
[367256890,1750720254260,-500.0,0.00021973,2]
[367256891,1750720254270,-502.78657139,0.00021973,2]
[367256892,1750720254279,-500.0,0.00021973,2]
[367256893,1750720254289,-500.0,0.00021973,2]
[367256894,1750720254298,-500.0,0.00021973,2]
[367256895,1750720254308,-500.0,0.00021973,2]
[367256896,1750720254318,-8638.16279879,0.00021997,2]
[367256897,1750720254327,-500.0,0.00021999,2]
[367256898,1750720254337,-1001.0,0.00022,3]
[367256899,1750720254347,-160.6396813,0.00022,2]
[367256900,1750720254356,-167.0,0.00022031,2]
[367256901,1750720254366,-1769.65175129,0.00022053,2]
[367256902,1750720254376,-1680.0,0.00022059,2]
[367256903,1750720254386,-13548.82097428,0.00022072,6]
[367256904,1750720254396,-500.0,0.00022113,2]
[367256905,1750720254405,-500.0,0.00022113,2]
[367256906,1750720254415,-8496.41488607,0.00022114,2]
[367256907,1750720254424,-150.0,0.00022137,2]
[367256908,1750720254434,-150.0,0.0002214,2]
[367256909,1750720254444,-636.0,0.00022149,2]
[367256910,1750720254453,-210.29025057,0.00022164,4]
[367256911,1750720254463,-8638.16279879,0.00022167,2]
[367256912,1750720254472,-500.0,0.00022173,2]
[367256913,1750720254482,-500.0,0.00022173,2]
[367256914,1750720254491,-500.0,0.00022173,2]
[367256915,1750720254501,-500.0,0.00022173,2]
[367256916,1750720254511,-500.0,0.00022173,2]
[367256917,1750720254520,-500.0,0.00022173,2]
[367256918,1750720254531,-500.0,0.00022173,2]
[367256919,1750720254540,-164.52280448,0.00022173,2]
[367256920,1750720254550,-501.24948313,0.00022173,2]
[367256921,1750720254560,-500.0,0.00022173,2]
[367256922,1750720254570,-500.0,0.00022173,2]
[367256923,1750720254579,-500.0,0.00022173,2]
[367256924,1750720254589,-500.0,0.00022173,2]
[367256925,1750720254598,-500.0,0.00022173,2]
[367256926,1750720254608,-500.0,0.00022173,2]
[367256927,1750720254618,-500.0,0.00022173,2]
[367256928,1750720254627,-500.0,0.00022173,2]
[367256929,1750720254638,-500.0,0.00022173,2]
[367256930,1750720254648,-500.0,0.00022173,2]
[367256931,1750720254658,-500.0,0.00022173,2]
[367256932,1750720254668,-500.0,0.00022175,2]
[367256933,1750720254677,-151.0,0.00022175,7]
[367256934,1750720254687,-151.0,0.00022175,7]
[367256935,1750720254697,-151.0,0.00022175,7]
[367256936,1750720254706,-221.25044,0.00022175,7]
[367256937,1750720254716,-221.25044,0.00022175,7]
[367256938,1750720254726,-202.492841,0.00022175,7]
[367256939,1750720254736,-196.101713,0.00022176,7]
[367256940,1750720254746,-151.0,0.00022176,7]
[367256941,1750720254755,-151.0,0.00022176,7]
[367256942,1750720254765,-151.0,0.00022176,7]
[367256943,1750720254774,-151.0,0.00022176,7]
[367256944,1750720254783,-155.385142,0.00022176,7]
[367256945,1750720254793,-151.0,0.00022176,7]
[367256946,1750720254802,-31901.4972795,0.00022176,2]
[367256947,1750720254812,-151.0,0.00022176,7]
[367256948,1750720254821,-151.0,0.00022176,7]
[367256949,1750720254831,-151.0,0.00022176,7]
[367256950,1750720254841,-80666.6259358,0.00022176,2]
[367256951,1750720254850,-151.0,0.00022176,7]
[367256952,1750720254860,-151.0,0.00022176,7]
[367256953,1750720254870,-11303.267035,0.00022176,2]
[367256954,1750720254881,-500.0,0.0002219,2]
[367256955,1750720254892,-500.0,0.0002219,2]
[367256956,1750720254902,-500.0,0.0002219,2]
[367256957,1750720254911,-500.0,0.0002219,2]
[367256958,1750720254921,-500.0,0.0002219,2]
[367256959,1750720254931,-500.0,0.0002219,2]
[367256960,1750720254943,-220.71,0.0002219,2]
[367256961,1750720254952,-500.0,0.0002219,2]
[367256962,1750720254962,-500.0,0.0002219,2]
[367256963,1750720254971,-500.0,0.0002219,2]
[367256964,1750720254982,-500.0,0.0002219,2]
[367256965,1750720254992,-500.0,0.0002219,2]
[367256966,1750720255001,-500.0,0.0002219,2]
[367256967,1750720255012,-666.0,0.0002219,2]
[367256968,1750720255022,-666.0,0.0002219,2]
[367256969,1750720255323,-300.0,0.0002219,2]
[367256970,1750720255335,-1831.946697,0.00022191,2]
[367256971,1750720255346,-587.704015,0.00022191,2]
[367256972,1750720255356,-490.0,0.00022191,2]
[367256973,1750720255367,-490.0,0.00022191,2]
[367256974,1750720255377,-490.0,0.00022191,2]
[367256975,1750720255388,-490.0,0.00022191,2]
[367256976,1750720255398,-625.88,0.00022191,2]
[367256977,1750720255410,-490.0,0.00022191,2]
[367256978,1750720255420,-490.0,0.00022191,2]
[367256979,1750720255430,-490.0,0.00022191,2]
[367256980,1750720255439,-490.0,0.00022191,2]
[367256981,1750720255449,-151.0,0.00022191,7]
[367256982,1750720255459,-151.0,0.00022191,7]
[367256983,1750720255468,-151.0,0.00022191,7]
[367256984,1750720255478,-151.0,0.00022191,7]
[367256985,1750720255487,-490.0,0.00022191,2]
[367256986,1750720255496,-151.0,0.00022191,7]
[367256987,1750720255505,-151.0,0.00022191,7]
[367256988,1750720255515,-151.0,0.00022191,7]
[367256989,1750720255526,-563.59,0.00022191,2]
[367256990,1750720255535,-490.0,0.00022191,2]
[367256991,1750720255547,-490.0,0.00022191,2]
[367256992,1750720255556,-490.0,0.00022191,2]
[367256993,1750720255566,-743.16,0.00022191,2]
[367256994,1750720255575,-221.40168385,0.00022191,2]
[367256995,1750720255585,-490.0,0.00022191,2]
[367256996,1750720255594,-490.0,0.00022191,2]
[367256997,1750720255605,-490.0,0.00022191,2]
[367256998,1750720255614,-646.68,0.00022191,2]
[367256999,1750720255623,-490.0,0.00022191,2]
[367257000,1750720255632,-490.0,0.00022191,2]
[367257001,1750720255643,-603.39,0.00022191,2]
[367257002,1750720255652,-490.0,0.00022191,2]
[367257003,1750720255661,-557.33,0.00022191,2]
[367257004,1750720255671,-490.0,0.00022191,2]
[367257005,1750720255680,-490.0,0.00022191,2]
[367257006,1750720255689,-490.0,0.00022191,2]
[367257007,1750720255698,-490.0,0.00022191,2]
[367257008,1750720255708,-490.0,0.00022191,2]
[367257009,1750720255719,-151.0,0.00022191,7]
[367257010,1750720255731,-151.0,0.00022191,7]
[367257011,1750720255741,-151.0,0.00022191,7]
[367257012,1750720255751,-151.0,0.00022191,7]
[367257013,1750720255760,-151.0,0.00022191,7]
[367257014,1750720255770,-273.485314,0.00022191,7]
[367257015,1750720255781,-490.0,0.00022191,2]
[367257016,1750720255791,-518.87,0.00022191,2]
[367257017,1750720255801,-490.0,0.00022191,2]
[367257018,1750720255812,-490.0,0.00022191,2]
[367257019,1750720255824,-490.0,0.00022191,2]
[367257020,1750720255834,-490.0,0.00022191,2]
[367257021,1750720255843,-151.0,0.00022191,7]
[367257022,1750720255853,-151.0,0.00022191,7]
[367257023,1750720255862,-151.0,0.00022191,7]
[367257024,1750720255872,-490.0,0.00022191,2]
[367257025,1750720255882,-584.66,0.00022191,2]
[367257026,1750720255893,-590.15,0.00022191,2]
[367257027,1750720255903,-490.0,0.00022191,2]
[367257028,1750720255912,-490.0,0.00022191,2]
[367257029,1750720255922,-490.0,0.00022191,2]
[367257030,1750720255933,-780.22,0.00022191,2]
[367257031,1750720255944,-156.32713339,0.00022191,2]
[367257032,1750720255954,-490.0,0.00022191,2]
[367257033,1750720255964,-490.0,0.00022191,2]
[367257034,1750720255973,-151.0,0.00022191,7]
[367257035,1750720255984,-151.0,0.00022191,7]
[367257036,1750720255994,-151.0,0.00022191,7]
[367257037,1750720256004,-528.35,0.00022191,2]
[367257038,1750720256014,-594.06,0.00022191,2]
[367257039,1750720256023,-490.0,0.00022191,2]
[367257040,1750720256033,-566.03,0.00022191,2]
[367257041,1750720256044,-490.0,0.00022191,2]
[367257042,1750720256054,-490.0,0.00022191,2]
[367257043,1750720256063,-300.0,0.00022191,2]
[367257044,1750720256073,-490.0,0.00022191,2]
[367257045,1750720256083,-490.0,0.00022191,2]
[367257046,1750720256093,-724.91,0.00022191,2]
[367257047,1750720256103,-490.0,0.00022191,2]
[367257048,1750720256113,-630.84,0.00022191,2]
[367257049,1750720256123,-490.0,0.00022191,2]
[367257050,1750720256133,-490.0,0.00022191,2]
[367257051,1750720256142,-524.88,0.00022191,2]
[367257052,1750720256151,-490.0,0.00022191,2]
[367257053,1750720256161,-490.0,0.00022191,2]
[367257054,1750720256171,-490.0,0.00022191,2]